lending/lending_fUSD_20251008
["ID","MTS","AMOUNT","RATE_DAILY","PERIOD"]
[390112774,1759967438362,-38.58742162,0.00019804,2]
[390112775,1759967438372,-240.46118209,0.0002,2]
[390112776,1759967438381,-159.67,0.0002082,2]
[390112777,1759967438391,-147.58750734,0.00021836,2]
[390112998,1759967440681,-12.08249266,0.00021836,2]
[390113000,1759967440690,-340.5774,0.00022092,2]
[390113002,1759967440699,-150.0,0.00022192,2]
[390113004,1759967440708,-200.0,0.00022192,2]
[390113006,1759967440717,-518.0,0.0002275,2]
[390113008,1759967440726,-187.0,0.00022831,2]
[390113010,1759967440736,-415.0,0.00022831,2]
[390113012,1759967440744,-159.67,0.00022852,2]
[390113013,1759967440753,-150.0,0.00023192,2]
[390113015,1759967440763,-175.03030802,0.00023257,44]
[390113017,1759967440771,-383.0,0.00023357,2]
[390113019,1759967440781,-167.0,0.00023357,2]
[390113022,1759967440791,-354.0,0.00023439,2]
[390113024,1759967440800,-514.52,0.00023477,2]
[390113026,1759967440810,-300.0,0.00023867,2]
[390113027,1759967440818,-159.67,0.00023868,2]
[390113030,1759967440829,-150.0,0.00024192,2]
[390113031,1759967440838,-322.76049362,0.00024287,2]
[390113033,1759967440847,-271.51623217,0.000244,2]
[390113036,1759967440858,-200.0,0.00024411,2]
[390113038,1759967440867,-1455.3,0.00024566,2]
[390113039,1759967440876,-1000.0,0.0002467,2]
[390113042,1759967440886,-300.0,0.00024769,2]
[390113043,1759967440895,-201.4186593,0.0002477,2]
[390113046,1759967440904,-1611.34927447,0.0002477,2]
[390113047,1759967440914,-805.67463723,0.0002477,2]
[390113050,1759967440923,-604.25597792,0.0002477,2]
[390113052,1759967440932,-2014.18659309,0.0002477,2]
[390113054,1759967440942,-1812.76793378,0.0002477,2]
[390113056,1759967440951,-1208.51195585,0.0002477,2]
[390113058,1759967440960,-2215.6052524,0.0002477,2]
[390113060,1759967440969,-159.67,0.00024884,2]
[390113062,1759967440978,-2618.44257102,0.00025055,2]
[390113064,1759967440987,-370.79582791,0.00025092,2]
[390113066,1759967440997,-150.0,0.00025192,2]
[390113068,1759967441006,-11181.28212715,0.00025196,2]
[390113070,1759967441016,-521.32,0.00025196,2]
[390113072,1759967441025,-518.96,0.00025196,2]
[390113074,1759967441034,-654.7,0.00025359,2]
[390113076,1759967441043,-1622.646,0.00025401,10]
[390113078,1759967441053,-600.0,0.00025479,2]
[390113080,1759967441062,-500.0,0.00025507,2]
[390113082,1759967441071,-500.0,0.00025507,2]
[390113084,1759967441080,-500.0,0.00025507,2]
[390113086,1759967441089,-500.0,0.00025507,2]
[390113088,1759967441098,-617.66129174,0.00025507,2]
[390113090,1759967441107,-151.9513638,0.00025508,2]
[390113092,1759967441117,-297.71832794,0.00025508,2]
[390113094,1759967441126,-578.20924308,0.00025508,2]
[390113096,1759967441135,-7965.41053268,0.00025508,2]
[390113098,1759967441144,-363.54968989,0.00025508,2]
[390113100,1759967441153,-322.6107,0.00025508,2]
[390113102,1759967441163,-500.0,0.00025508,2]
[390113103,1759967441172,-500.0,0.00025508,2]
[390113105,1759967441181,-339.48163206,0.00025508,2]
[390113107,1759967441191,-601.3376128,0.00025508,2]
[390113109,1759967441200,-1000.0,0.00025508,2]
[390113112,1759967441210,-1000.0,0.00025508,2]
[390113114,1759967441220,-1000.0,0.00025508,2]
[390113116,1759967441229,-1000.0,0.00025508,2]
[390113118,1759967441238,-1000.0,0.00025508,2]
[390113120,1759967441248,-1000.0,0.00025508,2]
[390113122,1759967441257,-231.28369723,0.00025508,2]
[390113123,1759967441266,-2819.86123033,0.00025513,3]
[390113125,1759967441275,-8260.13072239,0.00025563,2]
[390113128,1759967441285,-8565.75555911,0.00025618,2]
[390113129,1759967441294,-8387.36284807,0.00025673,2]
[390113131,1759967441304,-1469.18510194,0.00025695,2]
[390113133,1759967441314,-401.0,0.00025761,2]
[390113135,1759967441323,-3090.71,0.00025786,2]
[390113138,1759967441332,-6765.48,0.00025786,2]
[390113140,1759967441342,-2501.12,0.00025786,2]
[390113141,1759967441351,-1422.98,0.00025786,2]
[390113143,1759967441360,-420.0,0.00025886,2]
[390113145,1759967441369,-400.0,0.00025953,7]
[390113147,1759967441378,-3021.27988964,0.00025972,4]
[390113149,1759967441387,-399.0,0.00025996,2]
[390113150,1759967441396,-600.0,0.00026027,2]
[390113151,1759967441406,-399.0,0.00026062,2]
[390113152,1759967441415,-400.0,0.00026081,2]
[390113153,1759967441423,-400.0,0.00026107,2]
[390113154,1759967441432,-399.0,0.0002611,2]
[390113155,1759967441441,-401.0,0.00026121,7]
[390113156,1759967441450,-200.0,0.00026186,2]
[390113157,1759967441459,-250.0,0.00026186,2]
[390113158,1759967441467,-300.0,0.00026192,2]
[390113159,1759967441476,-399.0,0.00026253,2]
[390113160,1759967441486,-2322.80010413,0.00026324,2]
[390113161,1759967441495,-410.63,0.00026384,2]
[390113162,1759967441503,-527.5,0.0002641,2]
[390113163,1759967441515,-3222.69854895,0.00026431,5]
[390113164,1759967441523,-399.0,0.00026433,2]
[390113165,1759967441532,-13527.38990846,0.00026491,2]
[390113166,1759967441541,-1000.0,0.000265,2]
[390113167,1759967441550,-1438.0,0.000265,2]
[390113168,1759967441560,-1014.0,0.000265,2]
[390113169,1759967441569,-155.0,0.0002659,2]
[390113170,1759967441578,-500.0,0.00026591,2]
[390113171,1759967441587,-340.16741455,0.00026591,2]
[390113172,1759967441595,-500.0,0.00026591,2]
[390113173,1759967441604,-500.0,0.00026591,2]
[390113175,1759967441612,-500.0,0.00026591,2]
[390113177,1759967441622,-500.0,0.00026591,2]
[390113179,1759967441631,-500.0,0.00026591,2]
[390113181,1759967441640,-500.0,0.00026591,2]
[390113183,1759967441649,-500.0,0.00026591,2]
[390113185,1759967441658,-500.0,0.00026591,2]
[390113187,1759967441667,-500.0,0.00026591,2]
[390113189,1759967441676,-500.0,0.00026591,2]
[390113191,1759967441685,-500.0,0.00026591,2]
[390113193,1759967441695,-500.0,0.00026591,2]
[390113195,1759967441704,-500.0,0.00026591,2]
[390113197,1759967441713,-500.0,0.00026591,2]
[390113198,1759967441723,-500.0,0.00026591,2]
[390113200,1759967441732,-500.0,0.00026591,2]
[390113202,1759967441741,-500.0,0.00026591,2]
[390113204,1759967441751,-500.0,0.00026591,2]
[390113206,1759967441761,-500.0,0.00026591,2]
[390113208,1759967441771,-500.0,0.00026591,2]
[390113210,1759967441780,-500.0,0.00026591,2]
[390113212,1759967441789,-500.0,0.00026591,2]
[390113214,1759967441799,-432.94914953,0.00026591,2]
[390113216,1759967441808,-500.0,0.00026591,2]
[390113218,1759967441817,-500.0,0.00026591,2]
[390113220,1759967441827,-500.0,0.00026591,2]
[390113222,1759967441837,-500.0,0.00026591,2]
[390113224,1759967441846,-500.0,0.00026591,2]
[390113226,1759967441855,-500.0,0.00026591,2]
[390113228,1759967441865,-500.0,0.00026591,2]
[390113230,1759967441874,-500.0,0.00026591,2]
[390113232,1759967441883,-500.0,0.00026591,2]
[390113234,1759967441892,-500.0,0.00026591,2]
[390113236,1759967441900,-500.0,0.00026591,2]
[390113238,1759967441909,-500.0,0.00026591,2]
[390113240,1759967441918,-491.95,0.00026591,2]
[390113242,1759967441927,-500.0,0.00026591,2]
[390113244,1759967441936,-500.0,0.00026591,2]
[390113246,1759967441945,-500.0,0.00026591,2]
[390113248,1759967441954,-583.05,0.00026591,2]
[390113250,1759967441963,-500.0,0.00026591,2]
[390113252,1759967441972,-500.0,0.00026591,2]
[390113254,1759967441981,-500.0,0.00026591,2]
[390113256,1759967441991,-500.0,0.00026591,2]
[390113258,1759967441999,-500.0,0.00026591,2]
[390113260,1759967442008,-500.0,0.00026591,2]
[390113262,1759967442018,-547.67,0.00026591,2]
[390113264,1759967442027,-500.0,0.00026591,2]
[390113266,1759967442036,-500.0,0.00026591,2]
[390113268,1759967442046,-500.0,0.00026591,2]
[390113270,1759967442055,-500.0,0.00026591,2]
[390113272,1759967442064,-500.0,0.00026591,2]
[390113274,1759967442073,-500.0,0.00026591,2]
[390113276,1759967442082,-500.0,0.00026591,2]
[390113278,1759967442091,-515.84,0.00026591,2]
[390113280,1759967442100,-500.0,0.00026591,2]
[390113282,1759967442109,-500.0,0.00026591,2]
[390113284,1759967442118,-500.0,0.00026591,2]
[390113286,1759967442127,-500.0,0.00026591,2]
[390113287,1759967442136,-500.0,0.00026591,2]
[390113290,1759967442145,-500.0,0.00026591,2]
[390113292,1759967442157,-632.95,0.00026591,2]
[390113293,1759967442166,-500.0,0.00026591,2]
[390113296,1759967442176,-500.0,0.00026591,2]
[390113297,1759967442185,-500.0,0.00026591,2]
[390113300,1759967442195,-500.0,0.00026591,2]
[390113301,1759967442205,-500.0,0.00026591,2]
[390113303,1759967442214,-340.84762221,0.00026591,2]
[390113306,1759967442223,-955.86,0.00026591,2]
[390113308,1759967442232,-300.0,0.00026591,2]
[390113309,1759967442241,-500.0,0.00026591,2]
[390113312,1759967442251,-500.0,0.00026591,2]
[390113314,1759967442260,-500.0,0.00026591,2]
[390113316,1759967442269,-500.0,0.00026591,2]
[390113318,1759967442279,-500.0,0.00026591,2]
[390113320,1759967442289,-500.0,0.00026591,2]
[390113322,1759967442299,-500.0,0.00026591,2]
[390113324,1759967442308,-500.0,0.00026591,2]
[390113326,1759967442317,-500.0,0.00026591,2]
[390113328,1759967442327,-549.87229726,0.00026591,2]
[390113330,1759967442336,-500.0,0.00026591,2]
[390113332,1759967442346,-500.0,0.00026591,2]
[390113334,1759967442356,-500.0,0.00026591,2]
[390113336,1759967442365,-500.0,0.00026591,2]
[390113338,1759967442374,-500.0,0.00026591,2]
[390113340,1759967442383,-500.0,0.00026591,2]
[390113342,1759967442392,-500.0,0.00026591,2]
[390113344,1759967442401,-500.0,0.00026591,2]
[390113346,1759967442410,-500.0,0.00026591,2]
[390113348,1759967442419,-500.0,0.00026591,2]
[390113350,1759967442428,-500.0,0.00026591,2]
[390113352,1759967442437,-500.0,0.00026591,2]
[390113354,1759967442447,-1130.31,0.00026591,2]
[390113356,1759967442456,-500.0,0.00026591,2]
[390113358,1759967442465,-500.0,0.00026591,2]
[390113360,1759967442475,-500.0,0.00026591,2]
[390113362,1759967442486,-500.0,0.00026591,2]
[390113364,1759967442495,-500.0,0.00026591,2]
[390113366,1759967442503,-999.99,0.00026591,2]
[390113368,1759967442513,-150.99,0.00026591,2]
[390113370,1759967442523,-5738.17,0.00026591,2]
[390113371,1759967442533,-150.99,0.00026591,2]
[390113374,1759967442544,-9999.99,0.00026591,2]
[390113376,1759967442555,-900.0,0.0002663,2]
[390113378,1759967442564,-151.52760972,0.00026631,2]
[390113380,1759967442573,-500.0,0.00026655,2]
[390113382,1759967442582,-500.0,0.00026655,2]
[390113384,1759967442591,-500.0,0.00026655,2]
[390113386,1759967442601,-500.0,0.00026655,2]
[390113388,1759967442610,-327.0,0.00026678,2]
[390113390,1759967442619,-329.0,0.00026685,2]
[390113392,1759967442628,-500.0,0.00026693,2]
[390113394,1759967442637,-500.0,0.00026693,2]
[390113396,1759967442645,-500.0,0.00026693,2]
[390113398,1759967442655,-500.0,0.00026693,2]
[390113400,1759967442665,-500.0,0.00026693,2]
[390113401,1759967442678,-502.12979903,0.00026693,2]
[390113403,1759967442689,-500.0,0.00026693,2]
[390113406,1759967442698,-500.0,0.00026693,2]
[390113407,1759967442707,-500.0,0.00026693,2]
[390113410,1759967442716,-500.0,0.00026693,2]
[390113411,1759967442727,-500.0,0.00026693,2]
[390113414,1759967442736,-500.0,0.00026693,2]
[390113416,1759967442745,-500.0,0.00026693,2]
[390113417,1759967442754,-500.0,0.00026693,2]
[390113420,1759967442763,-171.60330016,0.00026693,2]
[390113422,1759967442773,-507.59663352,0.00026693,2]
[390113424,1759967442783,-500.0,0.00026693,2]
[390113426,1759967442795,-19740.12161772,0.00026694,2]
[390113428,1759967442813,-1000.0,0.000267,2]
[390113430,1759967442822,-399.0,0.00026703,7]
[390113432,1759967442831,-219.84,0.00026753,2]
[390113434,1759967442840,-169.90500968,0.00026764,2]
[390113436,1759967442850,-5000.0,0.00026765,2]
[390113438,1759967442859,-500.0,0.0002678,2]
[390113440,1759967442868,-500.0,0.0002678,2]
[390113442,1759967442877,-500.0,0.0002678,2]
[390113444,1759967442885,-500.0,0.0002678,2]
[390113446,1759967442895,-500.0,0.00026781,2]
[390113448,1759967442904,-500.0,0.00026781,2]
[390113450,1759967442913,-500.0,0.00026781,2]
[390113452,1759967442922,-500.0,0.00026781,2]
[390113454,1759967442932,-554.21,0.00026781,2]
[390113456,1759967442941,-500.0,0.00026781,2]
[390113458,1759967442950,-500.0,0.00026781,2]
[390113460,1759967442959,-500.0,0.00026781,2]
[390113462,1759967442968,-816.09,0.00026781,2]
[390113463,1759967442978,-500.0,0.00026781,2]
[390113465,1759967442987,-500.0,0.00026781,2]
[390113467,1759967442996,-500.0,0.00026781,2]
[390113469,1759967443005,-500.0,0.00026781,2]
[390113472,1759967443015,-500.0,0.00026781,2]
[390113474,1759967443024,-500.0,0.00026781,2]
[390113476,1759967443034,-500.0,0.00026781,2]
[390113477,1759967443044,-500.0,0.00026781,2]
[390113479,1759967443054,-500.0,0.00026781,2]
[390113482,1759967443064,-500.0,0.00026781,2]
[390113484,1759967443074,-500.0,0.00026781,2]
[390113486,1759967443083,-400.0,0.00026782,2]
[390113487,1759967443092,-500.0,0.00026782,2]
[390113490,1759967443102,-500.0,0.00026782,2]
[390113492,1759967443111,-317.6233991,0.00026782,2]
[390113494,1759967443121,-500.0,0.00026782,2]
[390113496,1759967443130,-500.0,0.00026782,2]
[390113498,1759967443139,-500.0,0.00026782,2]
[390113500,1759967443149,-500.0,0.00026782,2]
[390113502,1759967443158,-523.05514854,0.00026782,2]
[390113504,1759967443168,-500.0,0.00026782,2]
[390113506,1759967443177,-506.70664256,0.00026782,2]
[390113508,1759967443187,-500.0,0.00026782,2]
[390113511,1759967443196,-501.27658763,0.00026782,2]
[390113512,1759967443205,-500.0,0.00026782,2]
[390113537,1759967443214,-500.0,0.00026782,2]
[390113540,1759967443391,-500.0,0.00026782,2]
[390113542,1759967443400,-500.0,0.00026782,2]
[390113544,1759967443409,-500.0,0.00026782,2]
[390113546,1759967443418,-500.0,0.00026782,2]
[390113548,1759967443427,-545.54,0.00026782,2]
[390113549,1759967443437,-500.0,0.00026782,2]
[390113551,1759967443446,-500.0,0.00026782,2]
[390113554,1759967443455,-500.0,0.00026782,2]
[390113556,1759967443464,-772.06,0.00026782,2]
[390113558,1759967443472,-790.88,0.00026782,2]
[390113559,1759967443481,-500.0,0.00026782,2]
[390113561,1759967443490,-500.0,0.00026782,2]
[390113563,1759967443499,-892.26,0.00026782,2]
[390113565,1759967443508,-3320.35,0.00026782,2]
[390113567,1759967443518,-614.06,0.00026782,2]
[390113569,1759967443527,-500.0,0.00026782,2]
[390113571,1759967443536,-500.0,0.00026782,2]
[390113573,1759967443545,-200.0,0.0002679,2]
[390113575,1759967443554,-150.0,0.00026792,2]
[390113578,1759967443563,-500.0,0.00026792,2]
[390113579,1759967443572,-500.0,0.00026792,2]
[390113582,1759967443581,-500.0,0.00026792,2]
[390113584,1759967443590,-500.0,0.00026792,2]
[390113585,1759967443599,-500.0,0.00026792,2]
[390113588,1759967443608,-500.0,0.00026792,2]
[390113590,1759967443618,-500.0,0.00026792,2]
[390113592,1759967443627,-500.0,0.00026792,2]
[390113594,1759967443636,-502.02169768,0.00026792,2]
[390113595,1759967443646,-500.0,0.00026792,2]
[390113598,1759967443655,-500.0,0.00026792,2]
[390113599,1759967443664,-500.0,0.00026792,2]
[390113601,1759967443674,-500.0,0.00026792,2]
[390113603,1759967443682,-500.0,0.00026792,2]
[390113606,1759967443692,-500.0,0.00026792,2]
[390113607,1759967443701,-500.0,0.00026792,2]
[390113609,1759967443710,-500.0,0.00026792,2]
[390113611,1759967443719,-500.0,0.00026792,2]
[390113613,1759967443729,-500.0,0.00026792,2]
[390113615,1759967443738,-500.0,0.00026792,2]
[390113617,1759967443748,-500.0,0.00026792,2]
[390113620,1759967443761,-500.0,0.00026792,2]
[390113622,1759967443770,-500.0,0.00026792,2]
[390113624,1759967443779,-551.39690193,0.00026792,2]
[390113625,1759967443788,-502.29875904,0.00026792,2]
[390113627,1759967443797,-500.60707938,0.00026792,2]
[390113630,1759967443807,-500.0,0.00026792,2]
[390113631,1759967443815,-376.21432485,0.00026792,2]
[390113634,1759967443824,-500.0,0.00026792,2]
[390113635,1759967443833,-500.0,0.00026792,2]
[390113638,1759967443844,-500.0,0.00026792,2]
[390113639,1759967443853,-500.0,0.00026792,2]
[390113642,1759967443862,-501.29389148,0.00026792,2]
[390113644,1759967443871,-500.0,0.00026792,2]
[390113646,1759967443880,-500.0,0.00026792,2]
[390113648,1759967443889,-500.0,0.00026792,2]
[390113650,1759967443898,-500.0,0.00026792,2]
[390113652,1759967443908,-502.80826663,0.00026792,2]
[390113654,1759967443919,-600.0,0.00026792,2]
[390113656,1759967443928,-401.16988901,0.00026792,2]
[390113657,1759967443937,-500.0,0.00026792,2]
[390113660,1759967443947,-314.98550527,0.00026792,2]
[390113662,1759967443955,-501.96598324,0.00026792,2]
[390113664,1759967443965,-500.0,0.00026793,2]
[390113666,1759967443974,-500.0,0.00026793,2]
[390113668,1759967443983,-500.0,0.00026793,2]
[390113669,1759967443992,-424.43363464,0.00026793,2]
[390113671,1759967444001,-554.31,0.00026796,2]
[390113673,1759967444012,-1197.76,0.00026797,2]
[390113676,1759967444021,-175.72,0.00026797,2]
[390113677,1759967444030,-150.0,0.00026797,2]
[390113680,1759967444039,-1090.99,0.00026797,2]
[390113682,1759967444048,-175.79,0.00026797,2]
[390113683,1759967444058,-1198.2,0.00026797,2]
[390113686,1759967444067,-413.05,0.00026797,2]
[390113687,1759967444076,-335.94,0.00026797,2]
[390113689,1759967444085,-1000.0,0.000268,2]
[390113691,1759967444094,-500.0,0.00026864,2]
[390113693,1759967444103,-500.0,0.00026864,2]
[390113695,1759967444112,-500.0,0.00026864,2]
[390113698,1759967444122,-500.0,0.00026864,2]
[390113699,1759967444131,-500.0,0.00026864,2]
[390113702,1759967444140,-500.0,0.00026864,2]
[390113704,1759967444151,-500.0,0.00026864,2]
[390113706,1759967444159,-500.0,0.00026864,2]
[390113708,1759967444168,-500.0,0.00026864,2]
[390113710,1759967444177,-500.0,0.00026864,2]
[390113712,1759967444186,-500.0,0.00026864,2]
[390113714,1759967444195,-500.0,0.00026864,2]
[390113716,1759967444204,-500.0,0.00026864,2]
[390113717,1759967444213,-500.0,0.00026864,2]
[390113719,1759967444223,-500.0,0.00026864,2]
[390113721,1759967444233,-500.0,0.00026864,2]
[390113724,1759967444242,-500.0,0.00026864,2]
[390113725,1759967444251,-500.0,0.00026864,2]
[390113728,1759967444260,-500.0,0.00026864,2]
[390113729,1759967444269,-500.0,0.00026864,2]
[390113731,1759967444278,-500.0,0.00026864,2]
[390113733,1759967444287,-500.0,0.00026864,2]
[390113736,1759967444296,-500.0,0.00026864,2]
[390113737,1759967444306,-500.0,0.00026864,2]
[390113739,1759967444314,-500.0,0.00026864,2]
[390113742,1759967444324,-500.0,0.00026864,2]
[390113744,1759967444333,-500.0,0.00026864,2]
[390113746,1759967444342,-500.0,0.00026864,2]
[390113747,1759967444352,-500.0,0.00026864,2]
[390113749,1759967444361,-500.0,0.00026864,2]
[390113751,1759967444369,-500.0,0.00026864,2]
[390113753,1759967444378,-500.0,0.00026864,2]
[390113755,1759967444387,-588.95,0.00026864,2]
[390113757,1759967444396,-500.0,0.00026864,2]
[390113759,1759967444405,-500.0,0.00026864,2]
[390113762,1759967444416,-500.0,0.00026864,2]
[390113764,1759967444424,-500.0,0.00026864,2]
[390113766,1759967444433,-500.0,0.00026864,15]
[390113767,1759967444444,-500.0,0.00026864,2]
[390113769,1759967444453,-153.56811623,0.00026864,2]
[390113771,1759967444461,-500.0,0.00026864,2]
[390113773,1759967444471,-1055.04,0.00026864,2]
[390113775,1759967444485,-500.0,0.00026864,2]
[390113778,1759967444495,-500.0,0.00026864,2]
[390113780,1759967444504,-500.0,0.00026864,2]
[390113782,1759967444513,-500.0,0.00026864,2]
[390113784,1759967444522,-500.0,0.00026864,2]
[390113785,1759967444532,-500.0,0.00026864,2]
[390113787,1759967444541,-738.14,0.00026864,2]
[390113789,1759967444550,-500.0,0.00026864,2]
[390113791,1759967444559,-500.0,0.00026864,2]
[390113793,1759967444568,-500.0,0.00026864,2]
[390113795,1759967444577,-500.0,0.00026864,2]
[390113798,1759967444586,-1500.0,0.00026864,2]
[390113800,1759967444596,-500.0,0.00026864,2]
[390113801,1759967444605,-500.0,0.00026864,2]
[390113804,1759967444614,-500.0,0.00026864,2]
[390113806,1759967444622,-500.0,0.00026864,2]
[390113808,1759967444631,-500.0,0.00026864,2]
[390113809,1759967444640,-500.0,0.00026864,2]
[390113812,1759967444649,-500.0,0.00026864,2]
[390113814,1759967444659,-500.0,0.00026864,2]
[390113815,1759967444668,-500.0,0.00026864,2]
[390113817,1759967444677,-500.0,0.00026864,2]
[390113819,1759967444686,-500.0,0.00026864,2]
[390113821,1759967444695,-500.0,0.00026864,2]
[390113824,1759967444705,-500.0,0.00026864,2]
[390113825,1759967444715,-500.0,0.00026864,2]
[390113828,1759967444725,-500.0,0.00026864,2]
[390113829,1759967444734,-500.0,0.00026864,2]
[390113831,1759967444743,-500.0,0.00026864,2]
[390113833,1759967444752,-500.0,0.00026864,2]
[390113835,1759967444761,-500.0,0.00026864,2]
[390113837,1759967444770,-151.0,0.00026864,7]
[390113839,1759967444779,-500.0,0.00026864,2]
[390113841,1759967444788,-500.0,0.00026864,2]
[390113844,1759967444797,-151.0,0.00026864,2]
[390113845,1759967444806,-500.0,0.00026864,2]
[390113847,1759967444815,-500.0,0.00026864,2]
[390113849,1759967444824,-500.0,0.00026864,2]
[390113851,1759967444833,-500.0,0.00026864,2]
[390113853,1759967444842,-500.0,0.00026864,2]
[390113855,1759967444851,-500.0,0.00026864,2]
[390113857,1759967444861,-500.0,0.00026864,2]
[390113860,1759967444870,-500.0,0.00026864,2]
[390113862,1759967444879,-1000.0,0.00026864,2]
[390113864,1759967444889,-500.0,0.00026864,2]
[390113865,1759967444897,-500.0,0.00026864,2]
[390113867,1759967444906,-151.0,0.00026864,7]
[390113870,1759967444919,-500.0,0.00026864,2]
[390113872,1759967444928,-500.0,0.00026864,2]
[390113874,1759967444938,-151.0,0.00026864,7]
[390113876,1759967444947,-500.0,0.00026864,2]
[390113878,1759967444955,-500.0,0.00026864,2]
[390113880,1759967444965,-151.0,0.00026864,7]
[390113882,1759967444974,-228.971567,0.00026864,7]
[390113884,1759967444982,-151.0,0.00026864,7]
[390113886,1759967444991,-228.971567,0.00026864,7]
[390113888,1759967445000,-228.971567,0.00026864,7]
[390113890,1759967445009,-157.92,0.00026865,2]
[390113892,1759967445019,-500.0,0.00026865,2]
[390113894,1759967445028,-500.0,0.00026865,2]
[390113896,1759967445038,-500.0,0.00026865,2]
[390113898,1759967445048,-638.30839606,0.00026865,2]
[390113900,1759967445057,-359.15142951,0.00026865,2]
[390113902,1759967445066,-373.07354568,0.00026865,2]
[390113904,1759967445075,-500.0,0.00026865,2]
[390113906,1759967445085,-500.0,0.00026865,2]
[390113908,1759967445094,-491.95,0.00026865,2]
[390113910,1759967445104,-500.0,0.00026865,2]
[390113912,1759967445113,-500.0,0.00026865,2]
[390113914,1759967445122,-501.33,0.00026865,2]
[390113917,1759967445131,-151.0,0.00026865,7]
[390113918,1759967445140,-500.0,0.00026865,2]
[390113920,1759967445150,-500.0,0.00026865,2]
[390113923,1759967445159,-524.33,0.00026865,2]
[390113925,1759967445168,-281.98,0.00026865,2]
[390113927,1759967445177,-603.82,0.00026865,2]
[390113929,1759967445186,-309.49,0.00026865,2]
[390113931,1759967445195,-413.78,0.00026865,2]
[390113932,1759967445205,-500.0,0.00026865,2]
[390113934,1759967445214,-170.26,0.00026865,2]
[390113936,1759967445224,-561.15,0.00026865,2]
[390113939,1759967445234,-500.0,0.00026865,2]
[390113941,1759967445245,-383.56,0.00026865,2]
[390113943,1759967445254,-151.0,0.00026865,7]
[390113945,1759967445264,-151.0,0.00026865,7]
[390113947,1759967445273,-151.0,0.00026865,7]
[390113949,1759967445282,-151.0,0.00026865,7]
[390113951,1759967445290,-955.86,0.00026865,2]
[390113953,1759967445299,-151.0,0.00026865,7]
[390113955,1759967445309,-500.0,0.00026865,2]
[390113957,1759967445317,-151.0,0.00026865,7]
[390113959,1759967445326,-151.0,0.00026865,7]
[390113961,1759967445335,-151.0,0.00026865,7]
[390113963,1759967445344,-500.0,0.00026865,2]
[390113965,1759967445353,-500.0,0.00026865,2]
[390113967,1759967445362,-609.21,0.00026865,2]
[390113969,1759967445375,-151.0,0.00026865,7]
[390113971,1759967445385,-500.0,0.00026865,2]
[390113973,1759967445394,-500.0,0.00026865,2]
[390113975,1759967445403,-453.27209619,0.00026865,2]
[390113981,1759967445451,-151.0,0.00026864,7]
[390113983,1759967445460,-46.72790381,0.00026865,2]
[390113985,1759967445469,-289.88159651,0.00026865,2]
[390113986,1759967445485,-210.11840349,0.00026865,2]
[390113987,1759967445494,-330.32127192,0.00026865,2]
[390114099,1759967446559,-1346.31030877,0.0002663,2]